{"text_format":"1","workbook":"xlsx","n_sheets":2,"sheets":["Talimatlar ve Kurulum","12Eyl"],"not_rendered":{"charts":0,"images":0,"macros":1,"external_links":0,"defined_names":13,"comments":0,"pivot_tables":0},"unopened":[],"bounds":{"document_bytes":16777216,"sheet_cells":100000,"rows_first":2000,"rows_last":500,"rows_between":2000,"halvings":0,"cell_chars":16384,"cell_head_chars":4096},"cells_cut":0,"cells_raw":0,"read":"whole","date_system":"1900"}

{"sheet":"Talimatlar ve Kurulum","index":0,"n_rows":23,"n_cols":9,"rows_kept":23,"cut":false,"hidden":false,"merged":[[11,7,11,8],[4,7,4,8],[6,7,6,8],[8,7,8,8],[10,7,10,8],[3,2,3,4],[5,2,5,4],[7,2,7,4],[9,2,9,4],[3,7,3,8],[5,7,5,8],[7,7,7,8],[9,7,9,8]]}
[]
[null,"Talimatlar ve Kurulum"]
[]
[null,1,"Aşağıdaki Dersler tablosuna bu programda takip etmek istediğiniz derslerin adını yazın.",null,null,null,5,"Programınızın başlangıç tarihini A5 hücresine girin."]
[]
[null,2,"Yine aşağıdaki Etkinlikler tablosundaki örnek etkinlikleri ihtiyaçlarınıza göre değiştirin. ",null,null,null,6,"Derslerinizi programa eklemek için satır 4'teki açılır menüyü kullanın. "]
[]
[null,3,"Günlük ödev etkinlikleri için kullanmak istediğiniz satır sayısını I14 sütunundan ayarlayın.",null,null,null,7,"Her dersin altındaki Ödevler sütununa ödevlerinizi ekleyin."]
[]
[null,4,"12 Eyl gibi bir sayfada adım 5 ila 9'u tekrar edin.",null,null,null,8,"Her ödev için tahminen kaç saate ihtiyaç duyacağınızı saat simgesiyle belirtilen süre sütununa girin."]
[]
[null,null,null,null,null,null,9,"Ödevinizi tamamladığınızda, ödevin yanında onay işaretiyle belirtilen tamamlanma sütununu çift tıklatın."]
[]
[null,null,"Dersler",null,"Etkinlikler",null,null,"Her gün için ayrılan satır sayısı:",5]
[null,null,"Matematik 101",null,"Tartışma"]
[null,null,"İngilizce 105",null,"Laboratuar"]
[null,null,"Fransızca 103",null,"Anlatım"]
[null,null,"Fen 101",null,"Ara Sınav"]
[null,null,"Tarih 101",null,"Okuma"]
[null,null,null,null,"İnceleme"]
[null,null,null,null,"Araştırma Raporu"]
[null,null,null,null,"İnceleme Ödevi"]
[null,null,null,null,"Çalışma"]

{"sheet":"12Eyl","index":1,"n_rows":103,"n_cols":24,"rows_kept":103,"cut":false,"hidden":false,"merged":[]}
[]
[null,"Ödev"]
[]
[null,"Başlangıç\nTarihini Girin","Toplam"," Ders:",null,"Matematik 101"," Ders:",null,"İngilizce 105"," Ders:",null,"Fransızca 103"," Ders:",null,"Fen 101"," Ders:",null,null," Ders:",null,null," Ders:"]
[null,"2011-09-12",null,null,null,"ÖDEV",null,null,"ÖDEV",null,null,"ÖDEV",null,null,"ÖDEV",null,null,"ÖDEV",null,null,"ÖDEV",null,null,"ÖDEV"]
[]
[null,{"$f":"ZamanlamaGünü","v":"2011-09-12"},{"$f":"GünlükSaatToplamları","v":6.5},1,1.5,"Okuma",1,2,"Çalışma",null,1,"Okuma",1,1,"Ara Sınav"]
[null,{"$f":"ZamanlamaGünü","v":""},{"$f":"GünlükSaatToplamları","v":""},1,1,"İnceleme Ödevi"]
[null,{"$f":"ZamanlamaGünü","v":""},{"$f":"GünlükSaatToplamları","v":""}]
[null,{"$f":"ZamanlamaGünü","v":""},{"$f":"GünlükSaatToplamları","v":""}]
[null,{"$f":"ZamanlamaGünü","v":""},{"$f":"GünlükSaatToplamları","v":""}]
[null,{"$f":"ZamanlamaGünü","v":"2011-09-13"},{"$f":"GünlükSaatToplamları","v":0}]
[null,{"$f":"ZamanlamaGünü","v":""},{"$f":"GünlükSaatToplamları","v":""}]
[null,{"$f":"ZamanlamaGünü","v":""},{"$f":"GünlükSaatToplamları","v":""}]
[null,{"$f":"ZamanlamaGünü","v":""},{"$f":"GünlükSaatToplamları","v":""}]
[null,{"$f":"ZamanlamaGünü","v":""},{"$f":"GünlükSaatToplamları","v":""}]
[null,{"$f":"ZamanlamaGünü","v":"2011-09-14"},{"$f":"GünlükSaatToplamları","v":0}]
[null,{"$f":"ZamanlamaGünü","v":""},{"$f":"GünlükSaatToplamları","v":""}]
[null,{"$f":"ZamanlamaGünü","v":""},{"$f":"GünlükSaatToplamları","v":""}]
[null,{"$f":"ZamanlamaGünü","v":""},{"$f":"GünlükSaatToplamları","v":""}]
[null,{"$f":"ZamanlamaGünü","v":""},{"$f":"GünlükSaatToplamları","v":""}]
[null,{"$f":"ZamanlamaGünü","v":"2011-09-15"},{"$f":"GünlükSaatToplamları","v":0}]
[null,{"$f":"ZamanlamaGünü","v":""},{"$f":"GünlükSaatToplamları","v":""}]
[null,{"$f":"ZamanlamaGünü","v":""},{"$f":"GünlükSaatToplamları","v":""}]
[null,{"$f":"ZamanlamaGünü","v":""},{"$f":"GünlükSaatToplamları","v":""}]
[null,{"$f":"ZamanlamaGünü","v":""},{"$f":"GünlükSaatToplamları","v":""}]
[null,{"$f":"ZamanlamaGünü","v":"2011-09-16"},{"$f":"GünlükSaatToplamları","v":0}]
[null,{"$f":"ZamanlamaGünü","v":""},{"$f":"GünlükSaatToplamları","v":""}]
[null,{"$f":"ZamanlamaGünü","v":""},{"$f":"GünlükSaatToplamları","v":""}]
[null,{"$f":"ZamanlamaGünü","v":""},{"$f":"GünlükSaatToplamları","v":""}]
[null,{"$f":"ZamanlamaGünü","v":""},{"$f":"GünlükSaatToplamları","v":""}]
[null,{"$f":"ZamanlamaGünü","v":"2011-09-17"},{"$f":"GünlükSaatToplamları","v":0}]
[null,{"$f":"ZamanlamaGünü","v":""},{"$f":"GünlükSaatToplamları","v":""}]
[null,{"$f":"ZamanlamaGünü","v":""},{"$f":"GünlükSaatToplamları","v":""}]
[null,{"$f":"ZamanlamaGünü","v":""},{"$f":"GünlükSaatToplamları","v":""}]
[null,{"$f":"ZamanlamaGünü","v":""},{"$f":"GünlükSaatToplamları","v":""}]
[null,{"$f":"ZamanlamaGünü","v":"2011-09-18"},{"$f":"GünlükSaatToplamları","v":0}]
[null,{"$f":"ZamanlamaGünü","v":""},{"$f":"GünlükSaatToplamları","v":""}]
[null,{"$f":"ZamanlamaGünü","v":""},{"$f":"GünlükSaatToplamları","v":""}]
[null,{"$f":"ZamanlamaGünü","v":""},{"$f":"GünlükSaatToplamları","v":""}]
[null,{"$f":"ZamanlamaGünü","v":""},{"$f":"GünlükSaatToplamları","v":""}]
[null,{"$f":"ZamanlamaGünü","v":""},{"$f":"GünlükSaatToplamları","v":""}]
[null,{"$f":"ZamanlamaGünü","v":""},{"$f":"GünlükSaatToplamları","v":""}]
[null,{"$f":"ZamanlamaGünü","v":""},{"$f":"GünlükSaatToplamları","v":""}]
[null,{"$f":"ZamanlamaGünü","v":""},{"$f":"GünlükSaatToplamları","v":""}]
[null,{"$f":"ZamanlamaGünü","v":""},{"$f":"GünlükSaatToplamları","v":""}]
[null,{"$f":"ZamanlamaGünü","v":""},{"$f":"GünlükSaatToplamları","v":""}]
[null,{"$f":"ZamanlamaGünü","v":""},{"$f":"GünlükSaatToplamları","v":""}]
[null,{"$f":"ZamanlamaGünü","v":""},{"$f":"GünlükSaatToplamları","v":""}]
[null,{"$f":"ZamanlamaGünü","v":""},{"$f":"GünlükSaatToplamları","v":""}]
[null,{"$f":"ZamanlamaGünü","v":""},{"$f":"GünlükSaatToplamları","v":""}]
[null,{"$f":"ZamanlamaGünü","v":""},{"$f":"GünlükSaatToplamları","v":""}]
[null,{"$f":"ZamanlamaGünü","v":""},{"$f":"GünlükSaatToplamları","v":""}]
[null,{"$f":"ZamanlamaGünü","v":""},{"$f":"GünlükSaatToplamları","v":""}]
[null,{"$f":"ZamanlamaGünü","v":""},{"$f":"GünlükSaatToplamları","v":""}]
[null,{"$f":"ZamanlamaGünü","v":""},{"$f":"GünlükSaatToplamları","v":""}]
[null,{"$f":"ZamanlamaGünü","v":""},{"$f":"GünlükSaatToplamları","v":""}]
[null,{"$f":"ZamanlamaGünü","v":""},{"$f":"GünlükSaatToplamları","v":""}]
[null,{"$f":"ZamanlamaGünü","v":""},{"$f":"GünlükSaatToplamları","v":""}]
[null,{"$f":"ZamanlamaGünü","v":""},{"$f":"GünlükSaatToplamları","v":""}]
[null,{"$f":"ZamanlamaGünü","v":""},{"$f":"GünlükSaatToplamları","v":""}]
[null,{"$f":"ZamanlamaGünü","v":""},{"$f":"GünlükSaatToplamları","v":""}]
[null,{"$f":"ZamanlamaGünü","v":""},{"$f":"GünlükSaatToplamları","v":""}]
[null,{"$f":"ZamanlamaGünü","v":""},{"$f":"GünlükSaatToplamları","v":""}]
[null,{"$f":"ZamanlamaGünü","v":""},{"$f":"GünlükSaatToplamları","v":""}]
[null,{"$f":"ZamanlamaGünü","v":""},{"$f":"GünlükSaatToplamları","v":""}]
[null,{"$f":"ZamanlamaGünü","v":""},{"$f":"GünlükSaatToplamları","v":""}]
[null,{"$f":"ZamanlamaGünü","v":""},{"$f":"GünlükSaatToplamları","v":""}]
[null,{"$f":"ZamanlamaGünü","v":""},{"$f":"GünlükSaatToplamları","v":""}]
[null,{"$f":"ZamanlamaGünü","v":""},{"$f":"GünlükSaatToplamları","v":""}]
[null,{"$f":"ZamanlamaGünü","v":""},{"$f":"GünlükSaatToplamları","v":""}]
[null,{"$f":"ZamanlamaGünü","v":""},{"$f":"GünlükSaatToplamları","v":""}]
[null,{"$f":"ZamanlamaGünü","v":""},{"$f":"GünlükSaatToplamları","v":""}]
[null,{"$f":"ZamanlamaGünü","v":""},{"$f":"GünlükSaatToplamları","v":""}]
[null,{"$f":"ZamanlamaGünü","v":""},{"$f":"GünlükSaatToplamları","v":""}]
[null,{"$f":"ZamanlamaGünü","v":""},{"$f":"GünlükSaatToplamları","v":""}]
[null,{"$f":"ZamanlamaGünü","v":""},{"$f":"GünlükSaatToplamları","v":""}]
[null,{"$f":"ZamanlamaGünü","v":""},{"$f":"GünlükSaatToplamları","v":""}]
[null,{"$f":"ZamanlamaGünü","v":""},{"$f":"GünlükSaatToplamları","v":""}]
[null,{"$f":"ZamanlamaGünü","v":""},{"$f":"GünlükSaatToplamları","v":""}]
[null,{"$f":"ZamanlamaGünü","v":""},{"$f":"GünlükSaatToplamları","v":""}]
[null,{"$f":"ZamanlamaGünü","v":""},{"$f":"GünlükSaatToplamları","v":""}]
[null,{"$f":"ZamanlamaGünü","v":""},{"$f":"GünlükSaatToplamları","v":""}]
[null,{"$f":"ZamanlamaGünü","v":""},{"$f":"GünlükSaatToplamları","v":""}]
[null,{"$f":"ZamanlamaGünü","v":""},{"$f":"GünlükSaatToplamları","v":""}]
[null,{"$f":"ZamanlamaGünü","v":""},{"$f":"GünlükSaatToplamları","v":""}]
[null,{"$f":"ZamanlamaGünü","v":""},{"$f":"GünlükSaatToplamları","v":""}]
[null,{"$f":"ZamanlamaGünü","v":""},{"$f":"GünlükSaatToplamları","v":""}]
[null,{"$f":"ZamanlamaGünü","v":""},{"$f":"GünlükSaatToplamları","v":""}]
[null,{"$f":"ZamanlamaGünü","v":""},{"$f":"GünlükSaatToplamları","v":""}]
[null,{"$f":"ZamanlamaGünü","v":""},{"$f":"GünlükSaatToplamları","v":""}]
[null,{"$f":"ZamanlamaGünü","v":""},{"$f":"GünlükSaatToplamları","v":""}]
[null,{"$f":"ZamanlamaGünü","v":""},{"$f":"GünlükSaatToplamları","v":""}]
[null,{"$f":"ZamanlamaGünü","v":""},{"$f":"GünlükSaatToplamları","v":""}]
[null,{"$f":"ZamanlamaGünü","v":""},{"$f":"GünlükSaatToplamları","v":""}]
[null,{"$f":"ZamanlamaGünü","v":""},{"$f":"GünlükSaatToplamları","v":""}]
[null,{"$f":"ZamanlamaGünü","v":""},{"$f":"GünlükSaatToplamları","v":""}]
[null,{"$f":"ZamanlamaGünü","v":""},{"$f":"GünlükSaatToplamları","v":""}]
[null,{"$f":"ZamanlamaGünü","v":""},{"$f":"GünlükSaatToplamları","v":""}]
[null,{"$f":"ZamanlamaGünü","v":""},{"$f":"GünlükSaatToplamları","v":""}]
[null,{"$f":"ZamanlamaGünü","v":""},{"$f":"GünlükSaatToplamları","v":""}]
[null,{"$f":"ZamanlamaGünü","v":""},{"$f":"GünlükSaatToplamları","v":""}]
[null,{"$f":"ZamanlamaGünü","v":""},{"$f":"GünlükSaatToplamları","v":""}]